[Event "Olomouc Chess Summer Open 2022"]
[Site "Olomouc"]
[Date "2022.08.14"]
[Round "3.16"]
[White "Soban, Jaroslav"]
[Black "Patil, Mitali"]
[Result "1-0"]
[ECO "A20"]
[WhiteElo "2101"]
[BlackElo "1910"]
[Annotator "RC"]
[PlyCount "81"]
[EventDate "2022.08.14"]
[EventCountry "CZE"]
[SourceTitle "playchess.com"]
[Source "ChessBase"]
[SourceQuality "1"]
[TimeControl "40/5400+30:1800+30"]

1. c4 {[%emt 0:00:05]} e5 {[%emt 0:00:10]} 2. g3 {[%emt 0:00:08]} Nc6 {[%emt 0:00:13]} 3. Bg2 {[%emt 0:00:08]} f5 {[%emt 0:00:06]} 4. Nc3 {[%emt 0:01:43]} Nf6 {[%emt 0:00:22]} 5. a3 {[%emt 0:00:25]} Bc5 {[%emt 0:02:07]} 6. b4 {[%emt 0:05:04]} Bd4 {[%emt 0:00:21]} 7. Qb3 {[%emt 0:01:48]} O-O {[%emt 0:01:58]} 8. e3 {[%emt 0:06:48]} Bxc3 {[%emt 0:00:05]} 9. Qxc3 {[%emt 0:00:04]} f4 {[%emt 0:18:01]} 10. b5 {[%emt 0:06:51]} fxe3 {[%emt 0:00:05]} 11. dxe3 {[%emt 0:03:00]} Ne7 {[%emt 0:00:13]} 12. Bb2 {[%emt 0:02:02]} d6 {[%emt 0:00:20]} 13. h3 {[%emt 0:04:32]} a6 {[%emt 0:06:48]} 14. Rd1 {[%emt 0:04:05]} axb5 {[%emt 0:04:19]} 15. cxb5 {[%emt 0:00:22]} Nd7 {[%emt 0:05:27]} 16. Nf3 {[%emt 0:02:17]} Ng6 {[%emt 0:10:35]} 17. h4 {[%emt 0:07:01]} h5 {[%emt 0:21:39]} 18. Ng5 {[%emt 0:11:29]} Qf6 {[%emt 0:00:24]} 19. O-O {[%emt 0:00:36]} Nc5 {[%emt 0:01:21]} 20. f4 {[%emt 0:04:16]} Qe7 {[%emt 0:11:21]} 21. Bd5+ {[%emt 0:04:58]} Kh8 {[%emt 0:00:57]} 22. Qc2 {[%emt 0:00:27]} Bf5 {[%emt 0:03:54]} 23. e4 {[%emt 0:02:17]} Bg4 {[%emt 0:00:09]} 24. f5 {[%emt 0:00:26]} Qf6 {[%emt 0:02:01]} 25. fxg6 {[%emt 0:03:29]} Bxd1 {[%emt 0:00:04]} 26. Rxd1 {[%emt 0:00:41]} Qxg6 {[%emt 0:00:22]} 27. Bxe5 {[%emt 0:09:22]} Rxa3 {[%emt 0:00:29]} 28. Bf4 {[%emt 0:00:41]} Ra5 {[%emt 0:01:52]} 29. Qc4 {[%emt 0:03:55]} Ra4 {[%emt 0:02:00]} 30. Qe2 {[%emt 0:01:01]} b6 {[%emt 0:02:20]} 31. Rf1 {[%emt 0:01:32]} Ra3 {[%emt 0:02:07]} 32. Kg2 {[%emt 0:03:26]} Ra7 {[%emt 0:00:31]} 33. Be3 {[%emt 0:01:10]} Rxf1 {[%emt 0:00:26]} 34. Qxf1 {[%emt 0:00:02]} Qf6 {[%emt 0:00:56]} 35. Qd1 {[%emt 0:02:48]} Qg6 {[%emt 0:01:07]} 36. Qf3 {[%emt 0:00:38]} Qe8 {[%emt 0:00:27]} 37. Bf7 {[%emt 0:00:19]} Qxf7 {[%emt 0:00:44]} 38. Qxf7 {[%emt 0:00:13]} Ra8 {[%emt 0:00:04]} 39. Qxh5+ {[%emt 0:00:09]} Kg8 {[%emt 0:00:01]} 40. Qf7+ {[%emt 0:00:17]} Kh8 {[%emt 0:00:02]} 41. Bd4 {[%emt 0:30:18]} 1-0

[Event "Olomouc Chess Summer Open 2022"]
[Site "Olomouc"]
[Date "2022.08.14"]
[Round "3.17"]
[White "Muzika, Paul"]
[Black "Vasinek, Martin"]
[Result "1-0"]
[ECO "B38"]
[WhiteElo "2072"]
[BlackElo "1881"]
[Annotator "NA RC"]
[PlyCount "59"]
[EventDate "2022.08.14"]
[EventCountry "CZE"]
[SourceTitle "playchess.com"]
[Source "ChessBase"]
[SourceQuality "1"]
[TimeControl "40/5400+30:1800+30"]

1. e4 {[%emt 0:00:14]} c5 {[%emt 0:00:19]} 2. Nf3 {[%emt 0:00:18]} Nc6 {[%emt 0:00:12]} 3. d4 {[%emt 0:00:18]} cxd4 {[%emt 0:00:15]} 4. Nxd4 {[%emt 0:00:05]} g6 {[%emt 0:00:14]} 5. c4 {[%emt 0:02:35]} Bg7 {[%emt 0:00:42]} 6. Be3 {[%emt 0:00:31]} d6 {[%emt 0:02:52]} 7. Be2 {[%emt 0:02:00]} Nf6 {[%emt 0:01:13]} 8. Nc3 {[%emt 0:00:11]} Bd7 {[%emt 0:00:18]} 9. O-O {[%emt 0:00:56]} O-O {[%emt 0:01:26]} 10. h3 {[%emt 0:04:27]} Nxd4 {[%emt 0:02:48]} 11. Bxd4 {[%emt 0:00:14]} Bc6 {[%emt 0:00:08]} 12. Qc2 {[%emt 0:01:21]} Qc7 {[%emt 0:06:02]} 13. b4 {[%emt 0:02:22]} a6 {[%emt 0:01:30]} 14. a4 {[%emt 0:09:32]} e5 {[%emt 0:12:11]} 15. Be3 {[%emt 0:00:34]} b6 {[%emt 0:00:58]} 16. a5 {[%emt 0:10:57]} bxa5 {[%emt 0:05:30]} 17. Rxa5 {[%emt 0:00:47]} Rfb8 {[%emt 0:02:02]} 18. Rfa1 {[%emt 0:16:49]} Rxb4 {[%emt 0:18:37]} 19. Rxa6 {[%emt 0:00:18]} Rab8 {[%emt 0:00:57]} 20. f3 {[%emt 0:10:59]} Nh5 {[%emt 0:08:05]} 21. Ra7 {[%emt 0:02:13]} R4b7 {[%emt 0:00:47]} 22. Rxb7 {[%emt 0:01:45]} Rxb7 {[%emt 0:01:35]} 23. Qd2 {[%emt 0:01:34]} f5 {[%emt 0:09:49]} 24. Nb5 {[%emt 0:02:18]} Bxb5 {[%emt 0:01:37]} 25. cxb5 {[%emt 0:00:07]} Nf4 {[%emt 0:03:32]} 26. Ra8+ {[%emt 0:08:46]} Rb8 {[%emt 0:00:43]} 27. Bc4+ {[%emt 0:03:19]} Kh8 {[%emt 0:00:56]} 28. b6 {[%emt 0:03:29]} Qc8 {[%emt 0:01:50]} 29. Rxb8 {[%emt 0:01:29]} Qxb8 {[%emt 0:00:07]} 30. Qa5 {[%emt 0:01:40]} 1-0

[Event "Olomouc Chess Summer Open 2022"]
[Site "Olomouc"]
[Date "2022.08.14"]
[Round "3.18"]
[White "Schletter, Felix"]
[Black "Nagyova, Daniela"]
[Result "1-0"]
[ECO "C63"]
[WhiteElo "1975"]
[BlackElo "1712"]
[Annotator "NA RC"]
[PlyCount "81"]
[EventDate "2022.08.14"]
[EventCountry "CZE"]
[SourceTitle "playchess.com"]
[Source "ChessBase"]
[SourceQuality "1"]
[TimeControl "40/5400+30:1800+30"]

1. e4 {[%emt 0:00:03]} e5 {[%emt 0:00:10]} 2. Nf3 {[%emt 0:00:21]} Nc6 {[%emt 0:00:17]} 3. Bb5 {[%emt 0:00:10]} f5 {[%emt 0:00:40]} 4. d3 {[%emt 0:00:31]} fxe4 {[%emt 0:00:34]} 5. dxe4 {[%emt 0:00:10]} Nf6 {[%emt 0:01:17]} 6. O-O {[%emt 0:00:33]} Bc5 {[%emt 0:01:10]} 7. Bxc6 {[%emt 0:00:45]} bxc6 {[%emt 0:00:29]} 8. Nxe5 {[%emt 0:00:08]} O-O {[%emt 0:02:15]} 9. Nc3 {[%emt 0:00:07]} a5 {[%emt 0:04:47]} 10. Bg5 {[%emt 0:12:51]} Qe8 {[%emt 0:06:04]} 11. Nd3 {[%emt 0:00:39]} Ba7 {[%emt 0:02:01]} 12. e5 {[%emt 0:04:30]} Nd5 {[%emt 0:03:38]} 13. Nxd5 {[%emt 0:00:31]} cxd5 {[%emt 0:00:12]} 14. Re1 {[%emt 0:04:26]} Bb7 {[%emt 0:05:24]} 15. Bh4 {[%emt 0:09:00]} Qg6 {[%emt 0:07:24]} 16. Bg3 {[%emt 0:01:03]} d4 {[%emt 0:07:41]} 17. f4 {[%emt 0:18:09]} h5 {[%emt 0:07:27]} 18. Qd2 {[%emt 0:01:33]} Rae8 {[%emt 0:09:08]} 19. Qxa5 {[%emt 0:05:26]} Bb6 {[%emt 0:01:40]} 20. Qd2 {[%emt 0:00:08]} c5 {[%emt 0:04:51]} 21. b3 {[%emt 0:00:51]} Ra8 {[%emt 0:02:41]} 22. Rf1 {[%emt 0:04:02]} Ba5 {[%emt 0:04:29]} 23. Qf2 {[%emt 0:01:50]} Be4 {[%emt 0:05:55]} 24. Rac1 {[%emt 0:06:39]} Bb6 {[%emt 0:02:57]} 25. a4 {[%emt 0:00:58]} Bxd3 {[%emt 0:02:39]} 26. cxd3 {[%emt 0:00:06]} Qxd3 {[%emt 0:00:28]} 27. Qf3 {[%emt 0:00:36]} Qf5 {[%emt 0:02:20]} 28. Kh1 {[%emt 0:00:57]} Kh8 {[%emt 0:02:03]} 29. Bh4 {[%emt 0:02:00]} Rae8 {[%emt 0:04:01]} 30. Bg5 {[%emt 0:02:33]} Qg6 {[%emt 0:02:08]} 31. Qb7 {[%emt 0:01:56]} Qe6 {[%emt 0:03:26]} 32. h3 {[%emt 0:02:10]} Rb8 {[%emt 0:01:25]} 33. Qf3 {[%emt 0:00:28]} Qe8 {[%emt 0:01:29]} 34. g4 {[%emt 0:03:08]} Ba7 {[%emt 0:01:59]} 35. gxh5 {[%emt 0:01:02]} Qe6 {[%emt 0:00:24]} 36. Rc4 {[%emt 0:01:32]} Rb6 {[%emt 0:01:27]} 37. h6 {[%emt 0:01:00]} g6 {[%emt 0:01:00]} 38. Bf6+ {[%emt 0:00:37]} Kh7 {[%emt 0:00:27]} 39. Qd3 {[%emt 0:08:29]} d5 {[%emt 0:00:54]} 40. Rxc5 {[%emt 0:00:35]} Rb7 {[%emt 0:00:35]} 41. Rc2 {[%emt 0:32:56]} 1-0

[Event "Olomouc Chess Summer Open 2022"]
[Site "Olomouc"]
[Date "2022.08.14"]
[Round "3.19"]
[White "Korniichuk, Oleksandra"]
[Black "Hrabal, Matej"]
[Result "1-0"]
[ECO "C50"]
[WhiteElo "1789"]
[BlackElo "1950"]
[Annotator "NA RC"]
[PlyCount "45"]
[EventDate "2022.08.14"]
[EventCountry "CZE"]
[SourceTitle "playchess.com"]
[Source "ChessBase"]
[SourceQuality "1"]
[TimeControl "40/5400+30:1800+30"]

1. e4 {[%emt 0:00:03]} e5 {[%emt 0:04:23]} 2. Nf3 {[%emt 0:01:42]} Nc6 {[%emt 0:00:04]} 3. Bc4 {[%emt 0:00:27]} Nf6 {[%emt 0:00:06]} 4. d3 {[%emt 0:00:07]} Bc5 {[%emt 0:00:15]} 5. O-O {[%emt 0:00:22]} d6 {[%emt 0:00:47]} 6. h3 {[%emt 0:00:16]} a6 {[%emt 0:00:14]} 7. c3 {[%emt 0:02:07]} Ba7 {[%emt 0:00:44]} 8. Be3 {[%emt 0:05:15]} Na5 {[%emt 0:06:11]} 9. Qa4+ {[%emt 0:09:17]} c6 {[%emt 0:04:29]} 10. Bxf7+ {[%emt 0:06:46]} Kxf7 {[%emt 0:01:13]} 11. b4 {[%emt 0:00:06]} b5 {[%emt 0:04:45]} 12. Qxa5 {[%emt 0:00:26]} Qxa5 {[%emt 0:00:06]} 13. bxa5 {[%emt 0:00:05]} Bxe3 {[%emt 0:02:43]} 14. fxe3 {[%emt 0:00:05]} h6 {[%emt 0:04:41]} 15. g4 {[%emt 0:00:54]} g5 {[%emt 0:01:34]} 16. Nbd2 {[%emt 0:01:04]} Kg6 {[%emt 0:03:11]} 17. Rf2 {[%emt 0:00:46]} h5 {[%emt 0:02:18]} 18. Raf1 {[%emt 0:06:22]} hxg4 {[%emt 0:17:09]} 19. Nxe5+ {[%emt 0:01:26]} dxe5 {[%emt 0:00:09]} 20. Rxf6+ {[%emt 0:00:06]} Kh5 {[%emt 0:00:42]} 21. hxg4+ {[%emt 0:00:28]} Bxg4 {[%emt 0:04:06]} 22. Kg2 {[%emt 0:04:09]} Be2 {[%emt 0:01:42]} 23. R1f2 {[%emt 0:00:05]} 1-0

[Event "Olomouc Chess Summer Open 2022"]
[Site "Olomouc"]
[Date "2022.08.14"]
[Round "3.20"]
[White "Al-Ali, Hussein Ali Hussein"]
[Black "Vylicil, Adam"]
[Result "1-0"]
[ECO "A08"]
[WhiteElo "2262"]
[BlackElo "1890"]
[Annotator "TA"]
[PlyCount "153"]
[EventDate "2022.08.14"]
[EventCountry "CZE"]
[SourceTitle "playchess.com"]
[Source "ChessBase"]
[SourceQuality "1"]
[TimeControl "40/5400+30:1800+30"]

{[%evp 17,152,-11,16,-12,1,-50,-32,-46,0,-34,-30,-36,-20,-23,-12,-28,0,0,0,-9,0,0,0,0,0,-45,-44,-46,-43,-49,-49,-42,-33,-36,-35,-41,-29,-42,-37,-41,-38,-49,-41,-47,-52,-47,0,-40,-22,-40,0,-43,0,0,10,12,13,14,14,0,0,0,0,0,0,0,0,0,0,0,0,0,0,-27,0,0,0,0,6,6,6,6,80,80,210,88,490,71,71,71,198,57,57,57,74,57,74,57,57,57,57,0,57,57,74,74,74,57,57,57,57,57,57,57,57,0,57,57,57,57,57,57,12836,12836,12834,12834,12850,12850,27999,27999,27998,27998,27999,27999,27999,27999,29999]} 1. e4 {[%emt 0:03:57]} e6 {[%emt 0:00:08]} 2. d3 {[%emt 0:00:24]} d5 {[%emt 0:00:06]} 3. Nd2 {[%emt 0:00:05]} Nf6 {[%emt 0:00:12]} 4. Ngf3 {[%emt 0:00:06]} c5 {[%emt 0:00:16]} 5. g3 {[%emt 0:00:12]} Nc6 {[%emt 0:00:16]} 6. Bg2 {[%emt 0:00:06]} Be7 {[%emt 0:00:13]} 7. O-O {[%emt 0:00:07]} O-O {[%emt 0:00:12]} 8. Re1 {[%emt 0:00:08]} Qc7 {[%emt 0:01:03]} 9. c3 {[%emt 0:03:02]} b5 {[%emt 0:04:19]} 10. a3 {[%emt 0:03:20] C00: French: Unusual White 2nd moves.} Bb7 {[%emt 0:02:13] [#]} 11. e5 $146 {[%emt 0:01:15]} (11. exd5 $11 Nxd5 12. Qe2) ({Predecessor:} 11. Qe2 Rfe8 12. e5 Nd7 13. Nf1 d4 14. Bf4 a5 15. h4 a4 16. N1d2 Na5 17. cxd4 cxd4 18. Rac1 Qb6 19. Ng5 Bxg2 20. Kxg2 Rad8 21. Qh5 g6 22. Qxh7+ {1-0 (22) Cambria,G-Licandro,M (1577) Condino 2012}) 11... Nd7 $1 $15 {[%emt 0:01:42][%cal Rd7e5]} 12. d4 {[%emt 0:00:12] Black is slightly better.} Qb6 {[%emt 0:08:13]} (12... a5 $15) 13. Nf1 {[%emt 0:00:41]} a5 {[%emt 0:08:21]} 14. h4 {[%emt 0:01:56]} a4 {[%emt 0:02:17]} 15. Be3 {[%emt 0:00:36]} cxd4 {[%emt 0:04:05]} 16. Bxd4 {[%emt 0:07:23]} Nxd4 {[%emt 0:04:43]} 17. Nxd4 {[%emt 0:00:28]} Bc5 {[%emt 0:02:19]} 18. Ne3 {[%emt 0:03:50]} Bxd4 {[%emt 0:11:33]} (18... f6 {is interesting.} 19. Bh3 fxe5 20. Nxe6 Nf6) 19. Qxd4 {[%emt 0:00:11]} Qxd4 {[%emt 0:02:28]} 20. cxd4 {[%emt 0:00:05]} Nb6 {[%emt 0:01:21]} 21. b3 {[%emt 0:03:55]} axb3 {[%emt 0:09:52][%cal Ob5b4] Threatens to win with ...b4!} 22. Reb1 {[%emt 0:00:05]} Nc4 {[%emt 0:01:45] Strongly threatening ...Na5.} 23. Rxb3 {[%emt 0:00:10]} Bc6 {[%emt 0:00:49]} 24. Nc2 {[%emt 0:06:11]} Ra7 {[%emt 0:05:28]} 25. Bf1 {[%emt 0:00:11]} Rfa8 {[%emt 0:02:06]} 26. Rc3 {[%emt 0:02:38]} Kf8 {[%emt 0:03:25]} 27. Bd3 {[%emt 0:03:24]} h6 {[%emt 0:04:52]} 28. Be2 {[%emt 0:00:56]} Bd7 {[%emt 0:01:07]} 29. f3 {[%emt 0:05:26]} Ke7 {[%emt 0:01:08]} 30. Kf2 {[%emt 0:00:06]} Ra4 {[%emt 0:05:15]} 31. Rb3 {[%emt 0:00:13]} R4a7 {[%emt 0:03:17]} (31... f6 $15 {might be stronger.}) 32. Ke1 {[%emt 0:00:40]} Na5 {[%emt 0:01:27]} 33. Rc3 {[%emt 0:00:38]} Nc4 {[%emt 0:00:24]} 34. f4 {[%emt 0:00:19]} b4 {[%emt 0:05:25]} 35. Nxb4 {[%emt 0:00:09]} Rxa3 {[%emt 0:00:10]} 36. Rcxa3 {[%emt 0:00:23]} Rxa3 {[%emt 0:00:13]} 37. Rxa3 {[%emt 0:00:20]} Nxa3 $11 {[%emt 0:00:06][%mdl 4096] Endgame KBN-KBN} 38. Kd2 {[%emt 0:00:17]} Bb5 {[%emt 0:02:22]} 39. Bf3 {[%emt 0:01:00]} Nc4+ {[%emt 0:01:51]} 40. Kc3 {[%emt 0:03:22]} Ne3 {[%emt 0:01:58]} 41. h5 {[%emt 0:30:46]} Nf5 {[%emt 0:31:28]} 42. g4 {[%emt 0:00:15]} Nh4 {[%emt 0:00:27]} 43. Bd1 {[%emt 0:00:27]} f5 {[%emt 0:00:00]} 44. exf6+ {[%emt 0:00:00]} Kxf6 {[%emt 0:00:00]} 45. Kd2 {[%emt 0:00:00]} Bc4 {[%emt 0:00:00]} 46. Ke3 {[%emt 0:00:00]} g6 {[%emt 0:00:00]} 47. hxg6 {[%emt 0:00:00]} Nxg6 {[%emt 0:00:00]} 48. Nc6 {[%emt 0:00:00]} Bb5 {[%emt 0:00:00]} 49. Ne5 {[%emt 0:00:00]} Nxe5 {[%emt 0:00:00]} (49... Ne7 $11 {remains equal.}) 50. dxe5+ {[%emt 0:00:00] KB-KB} Ke7 {[%emt 0:00:00]} (50... Kf7 $16 {might work better.}) 51. f5 $1 $18 {[%emt 0:00:00]} Bd7 $2 {[%emt 0:00:00][%mdl 8192]} (51... Bc4 $16 {is a better chance.}) 52. Kf4 $2 {[%emt 0:00:00]} (52. f6+ $1 $18 Kd8 53. Bc2) 52... Kf7 {[%emt 0:01:01]} 53. f6 {[%emt 0:00:00]} Kg8 {[%emt 0:03:25]} (53... Bb5 $16) 54. g5 {[%emt 0:00:00]} ({White must play} 54. Be2 $1 $18) 54... hxg5+ $14 {[%emt 0:00:22]} 55. Kxg5 {[%emt 0:00:00]} Be8 {[%emt 0:00:51]} 56. Be2 {[%emt 0:00:00]} Kh7 {[%emt 0:01:12]} 57. Bd3+ {[%emt 0:00:00]} Kg8 {[%emt 0:00:25]} 58. Kh6 {[%emt 0:00:00]} Kf8 {[%emt 0:00:43]} 59. Kg5 {[%emt 0:00:00]} Kg8 $1 {[%emt 0:00:29]} 60. Kf4 {[%emt 0:00:00]} Kf7 {[%emt 0:00:34]} 61. Ke3 {[%emt 0:00:00]} Ba4 {[%emt 0:00:24]} 62. Kd4 {[%emt 0:00:00]} Bd1 $1 {[%emt 0:00:21] Prevents Be2.} 63. Kc5 {[%emt 0:00:00]} Bg4 {[%emt 0:00:25]} 64. Kd6 {[%emt 0:00:00]} Bh5 {[%emt 0:00:38]} 65. Bc2 {[%emt 0:00:00]} Bg4 {[%emt 0:00:26] [#]} 66. Bd3 {[%emt 0:00:00]} (66. Bg6+ $1 $14 Kf8 67. Bd3) 66... Bh3 {[%emt 0:00:31]} (66... Bh5 $1 $11) 67. Be2 {[%emt 0:00:00]} Bf5 {[%emt 0:00:14]} 68. Bh5+ {[%emt 0:00:00]} Kf8 {[%emt 0:00:01]} 69. Kc5 {[%emt 0:00:00]} Bh7 $2 {[%emt 0:00:43][%mdl 8192] [#]} (69... Kg8 $14) 70. Bg4 $1 $18 {[%emt 0:00:00]} Bg8 {[%emt 0:00:42]} 71. Kd6 {[%emt 0:00:00]} Bf7 {[%emt 0:01:03]} 72. Bxe6 {[%emt 0:00:00]} Bxe6 {[%emt 0:00:22]} 73. Kxe6 {[%emt 0:00:00] White mates.} d4 {[%emt 0:00:05]} 74. f7 {[%emt 0:00:00]} d3 {[%emt 0:00:20]} 75. Kf6 {[%emt 0:00:00]} d2 {[%emt 0:00:04]} 76. e6 {[%emt 0:00:00][%cal Be5e6,Be6e7][%mdl 32]} d1=Q {[%emt 0:00:08]} 77. e7# {[%emt 0:00:00] Weighted Error Value: White=0.32/Black=0.32} 1-0

[Event "Olomouc Chess Summer Open 2022"]
[Site "Olomouc"]
[Date "2022.08.15"]
[Round "4.16"]
[White "Schletter, Felix"]
[Black "Soban, Jaroslav"]
[Result "1-0"]
[ECO "B40"]
[WhiteElo "1975"]
[BlackElo "2101"]
[Annotator "NA RC"]
[PlyCount "95"]
[EventDate "2022.08.14"]
[EventCountry "CZE"]
[SourceTitle "playchess.com"]
[Source "ChessBase"]
[SourceQuality "1"]
[TimeControl "40/5400+30:1800+30"]

1. e4 {[%emt 0:00:04]} c5 {[%emt 0:00:05]} 2. Nf3 {[%emt 0:00:19]} e6 {[%emt 0:00:05]} 3. g3 {[%emt 0:00:06]} Nc6 {[%emt 0:03:36]} 4. Bg2 {[%emt 0:00:21]} Nf6 {[%emt 0:01:51]} 5. Qe2 {[%emt 0:00:35]} d6 {[%emt 0:04:28]} 6. O-O {[%emt 0:01:06]} Be7 {[%emt 0:00:24]} 7. c3 {[%emt 0:01:47]} O-O {[%emt 0:02:16]} 8. d4 {[%emt 0:00:19]} Rb8 {[%emt 0:02:25]} 9. Rd1 {[%emt 0:04:29]} Qc7 {[%emt 0:02:39]} 10. a4 {[%emt 0:04:18]} a6 {[%emt 0:06:25]} 11. Na3 {[%emt 0:03:08]} Re8 {[%emt 0:00:29]} 12. Nc4 {[%emt 0:12:22]} Ra8 {[%emt 0:26:33]} 13. dxc5 {[%emt 0:04:13]} dxc5 {[%emt 0:06:16]} 14. Bf4 {[%emt 0:00:41]} e5 {[%emt 0:00:06]} 15. Nfxe5 {[%emt 0:02:08]} g5 {[%emt 0:04:35]} 16. Nxc6 {[%emt 0:01:48]} gxf4 {[%emt 0:00:07]} 17. Nxe7+ {[%emt 0:00:08]} Rxe7 {[%emt 0:00:05]} 18. Qd2 {[%emt 0:06:08]} Be6 {[%emt 0:07:20]} 19. e5 {[%emt 0:02:21]} Bxc4 {[%emt 0:03:45]} 20. Qxf4 {[%emt 0:01:33]} Rxe5 {[%emt 0:07:32]} 21. Qxc4 {[%emt 0:01:04]} Rae8 {[%emt 0:00:10]} 22. h3 {[%emt 0:03:15]} Qe7 {[%emt 0:01:56]} 23. Qf4 {[%emt 0:09:12]} Ne4 {[%emt 0:06:11]} 24. Qg4+ {[%emt 0:03:00]} Rg5 {[%emt 0:02:34]} 25. Qxe4 {[%emt 0:02:51]} Qxe4 {[%emt 0:00:02]} 26. Bxe4 {[%emt 0:00:11]} Rxe4 {[%emt 0:00:03]} 27. Rd7 {[%emt 0:03:49]} b6 {[%emt 0:00:50]} 28. a5 {[%emt 0:04:10]} b5 {[%emt 0:00:15]} 29. Kf1 {[%emt 0:01:18]} Rge5 {[%emt 0:01:40]} 30. Rd6 {[%emt 0:01:50]} Re6 {[%emt 0:00:12]} 31. Rxe6 {[%emt 0:00:42]} Rxe6 {[%emt 0:00:38]} 32. Rd1 {[%emt 0:02:51]} Kf8 {[%emt 0:04:25]} 33. Rd7 {[%emt 0:00:58]} Ke8 {[%emt 0:00:16]} 34. Rb7 {[%emt 0:00:49]} c4 {[%emt 0:00:15]} 35. h4 {[%emt 0:11:04]} h6 {[%emt 0:03:05]} 36. g4 {[%emt 0:01:38]} Re4 {[%emt 0:02:00]} 37. f3 {[%emt 0:01:11]} Re3 {[%emt 0:01:28]} 38. Kf2 {[%emt 0:00:13]} Rd3 {[%emt 0:00:10]} 39. Ke2 {[%emt 0:00:07]} Rd6 {[%emt 0:00:05]} 40. Rb6 {[%emt 0:00:53]} Rd3 {[%emt 0:02:38]} 41. Rxa6 {[%emt 0:30:28]} h5 {[%emt 0:30:09]} 42. gxh5 {[%emt 0:00:11]} Rd5 {[%emt 0:00:22]} 43. h6 {[%emt 0:00:08]} Rh5 {[%emt 0:00:18]} 44. Rb6 {[%emt 0:00:15]} Kd7 {[%emt 0:00:17]} 45. a6 {[%emt 0:00:28]} Kc7 {[%emt 0:00:28]} 46. a7 {[%emt 0:00:13]} Re5+ {[%emt 0:00:36]} 47. Kf2 {[%emt 0:00:09]} Re8 {[%emt 0:00:05]} 48. Rb8 {[%emt 0:00:04]} 1-0

[Event "Olomouc Chess Summer Open 2022"]
[Site "Olomouc"]
[Date "2022.08.15"]
[Round "4.17"]
[White "Korniichuk, Oleksandra"]
[Black "Muzika, Paul"]
[Result "0-1"]
[ECO "C50"]
[WhiteElo "1789"]
[BlackElo "2072"]
[Annotator "NA RC"]
[PlyCount "120"]
[EventDate "2022.08.14"]
[EventCountry "CZE"]
[SourceTitle "playchess.com"]
[Source "ChessBase"]
[SourceQuality "1"]
[TimeControl "40/5400+30:1800+30"]

1. e4 {[%emt 0:00:03]} e5 {[%emt 0:00:09]} 2. Nf3 {[%emt 0:00:12]} Nc6 {[%emt 0:00:10]} 3. Bc4 {[%emt 0:00:23]} Nf6 {[%emt 0:00:08]} 4. d3 {[%emt 0:00:06]} Bc5 {[%emt 0:00:07]} 5. c3 {[%emt 0:01:01]} d6 {[%emt 0:00:13]} 6. h3 {[%emt 0:00:25]} h6 {[%emt 0:00:32]} 7. O-O {[%emt 0:00:53]} Bb6 {[%emt 0:00:14]} 8. Be3 {[%emt 0:08:46]} g5 {[%emt 0:00:45]} 9. Nh2 {[%emt 0:04:40]} Rg8 {[%emt 0:01:35]} 10. g4 {[%emt 0:16:27]} h5 {[%emt 0:02:56]} 11. Qf3 {[%emt 0:06:44]} Qe7 {[%emt 0:08:22]} 12. a4 {[%emt 0:07:14]} Bd7 {[%emt 0:04:08]} 13. b4 {[%emt 0:00:46]} a5 {[%emt 0:00:20]} 14. b5 {[%emt 0:01:57]} Nd8 {[%emt 0:01:44]} 15. Bxb6 {[%emt 0:11:19]} cxb6 {[%emt 0:00:08]} 16. d4 {[%emt 0:01:41]} Ne6 {[%emt 0:03:19]} 17. Bxe6 {[%emt 0:00:44]} Bxe6 {[%emt 0:00:48]} 18. d5 {[%emt 0:07:17]} Bd7 {[%emt 0:00:28]} 19. Nd2 {[%emt 0:00:30]} Rc8 {[%emt 0:01:26]} 20. Rac1 {[%emt 0:03:14]} Rh8 {[%emt 0:01:51]} 21. Qe2 {[%emt 0:04:23]} Nh7 {[%emt 0:25:32]} 22. Nc4 {[%emt 0:02:53]} Nf8 {[%emt 0:02:54]} 23. Nxb6 {[%emt 0:00:05]} Ng6 {[%emt 0:01:26]} 24. Nxc8 {[%emt 0:00:42]} Bxc8 {[%emt 0:00:05]} 25. Qc4 {[%emt 0:00:57]} Bd7 {[%emt 0:01:26]} 26. Qc7 {[%emt 0:02:23]} Kf8 {[%emt 0:00:07]} 27. c4 {[%emt 0:04:36]} Nf4 {[%emt 0:02:17]} 28. c5 {[%emt 0:00:30]} Ne2+ {[%emt 0:04:33]} 29. Kg2 {[%emt 0:00:17]} Nf4+ {[%emt 0:03:38]} 30. Kh1 {[%emt 0:01:20]} dxc5 {[%emt 0:00:12]} 31. Qxc5 {[%emt 0:00:16]} hxg4 {[%emt 0:00:12]} 32. Qxe7+ {[%emt 0:01:11]} Kxe7 {[%emt 0:00:06]} 33. hxg4 {[%emt 0:00:02]} Bxg4 {[%emt 0:00:18]} 34. f3 {[%emt 0:07:03]} Bh3 {[%emt 0:00:11]} 35. Rc7+ {[%emt 0:00:07]} Kf6 {[%emt 0:10:21]} 36. Rfc1 {[%emt 0:00:13]} g4 {[%emt 0:00:30]} 37. fxg4 {[%emt 0:04:05]} Bg2+ {[%emt 0:00:06]} 38. Kg1 {[%emt 0:00:05]} Bxe4 {[%emt 0:00:05]} 39. R1c2 {[%emt 0:01:42]} Bxc2 {[%emt 0:03:44]} 40. Rxc2 {[%emt 0:00:02]} Nxd5 {[%emt 0:00:46]} 41. Rc5 {[%emt 0:04:14]} Ke6 {[%emt 0:01:40]} 42. b6 {[%emt 0:05:27]} Ra8 {[%emt 0:01:34]} 43. Nf3 {[%emt 0:00:25]} f6 {[%emt 0:02:59]} 44. g5 {[%emt 0:04:44]} Kd6 {[%emt 0:01:18]} 45. Rb5 {[%emt 0:01:23]} fxg5 {[%emt 0:01:34]} 46. Kf2 {[%emt 0:00:09]} Nc3 {[%emt 0:03:25]} 47. Rb3 {[%emt 0:04:37]} Nxa4 {[%emt 0:00:12]} 48. Nxg5 {[%emt 0:00:32]} Nc5 {[%emt 0:00:43]} 49. Ra3 {[%emt 0:01:44]} a4 {[%emt 0:00:13]} 50. Ke3 {[%emt 0:00:51]} Kd5 {[%emt 0:00:21]} 51. Nf3 {[%emt 0:00:49]} Ra6 {[%emt 0:00:44]} 52. Kd2 {[%emt 0:01:14]} Rxb6 {[%emt 0:01:07]} 53. Re3 {[%emt 0:01:11]} e4 {[%emt 0:00:19]} 54. Nh4 {[%emt 0:00:21]} Rb2+ {[%emt 0:00:55]} 55. Kc1 {[%emt 0:00:08]} Rf2 {[%emt 0:00:11]} 56. Ng6 {[%emt 0:00:35]} Kd4 {[%emt 0:00:13]} 57. Ra3 {[%emt 0:00:13]} e3 {[%emt 0:00:39]} 58. Ne7 {[%emt 0:00:47]} Nd3+ {[%emt 0:00:44]} 59. Kb1 {[%emt 0:00:23]} b5 {[%emt 0:00:48]} 60. Nc6+ {[%emt 0:00:19]} Ke4 {[%emt 0:00:09]} 0-1